{"text_format":"1","workbook":"xlsx","n_sheets":3,"sheets":["Cerere de Finantare","A8-Detalii privind terenul ","Asociati"],"not_rendered":{"charts":0,"images":0,"macros":1,"external_links":0,"defined_names":0,"comments":0,"pivot_tables":0},"unopened":[],"bounds":{"document_bytes":16777216,"sheet_cells":100000,"rows_first":2000,"rows_last":500,"rows_between":2000,"halvings":0,"cell_chars":16384,"cell_head_chars":4096},"cells_cut":0,"cells_raw":0,"read":"whole","date_system":"1900"}

{"sheet":"Cerere de Finantare","index":0,"n_rows":92,"n_cols":52,"rows_kept":92,"cut":false,"hidden":false,"merged":[[81,51,81,63],[85,0,85,8],[85,10,85,24],[83,26,83,62],[85,26,85,62],[87,0,87,63],[83,0,83,8],[83,10,83,24],[89,52,89,60],[89,25,89,33],[68,31,68,40],[68,41,68,50],[68,51,68,63],[69,9,69,30],[91,0,99,63],[78,0,78,8],[78,9,78,30],[78,31,78,40],[78,41,78,50],[78,51,78,63],[79,0,79,8],[79,9,79,30],[79,31,79,40],[79,41,79,50],[79,51,79,63],[80,0,80,8],[80,9,80,30],[80,31,80,40],[80,41,80,50],[80,51,80,63],[81,0,81,8],[81,9,81,30],[81,31,81,40],[81,41,81,50],[77,41,77,50],[77,51,77,63],[70,9,70,30],[70,31,70,40],[70,41,70,50],[70,51,70,63],[71,9,71,30],[71,31,71,40],[71,41,71,50],[71,51,71,63],[72,9,72,30],[72,31,72,40],[72,41,72,50],[72,51,72,63],[73,9,73,30],[73,31,73,40],[73,41,73,50],[73,51,73,63],[74,9,74,30],[74,31,74,40],[74,41,74,50],[74,51,74,63],[75,41,75,50],[75,51,75,63],[64,41,64,50],[64,51,64,63],[65,0,65,8],[65,9,65,30],[65,31,65,40],[65,41,65,50],[65,51,65,63],[76,9,76,30],[76,31,76,40],[76,41,76,50],[76,51,76,63],[74,0,74,8],[75,0,75,8],[68,0,68,8],[67,0,67,8],[66,0,66,8],[66,9,66,30],[66,31,66,40],[66,41,66,50],[66,51,66,63],[67,9,67,30],[67,31,67,40],[67,41,67,50],[67,51,67,63],[69,41,69,50],[69,51,69,63],[72,0,72,8],[71,0,71,8],[70,0,70,8],[69,0,69,8],[60,0,60,8],[60,9,60,30],[60,31,60,40],[60,41,60,50],[60,51,60,63],[61,0,61,8],[61,9,61,30],[61,31,61,40],[61,41,61,50],[61,51,61,63],[62,0,62,8],[62,9,62,30],[62,31,62,40],[62,41,62,50],[62,51,62,63],[63,0,63,8],[63,9,63,30],[64,0,64,8],[63,41,63,50],[63,51,63,63],[59,0,59,8],[59,9,59,30],[59,31,59,40],[59,41,59,50],[59,51,59,63],[54,0,54,8],[54,9,54,30],[54,31,54,40],[54,41,54,50],[54,51,54,63],[55,0,55,8],[55,9,55,30],[55,31,55,40],[55,41,55,50],[55,51,55,63],[56,0,56,8],[56,9,56,30],[56,31,56,40],[58,0,58,8],[58,9,58,30],[58,31,58,40],[58,41,58,50],[28,31,28,40],[21,9,21,30],[57,0,57,8],[57,9,57,30],[57,31,57,40],[57,41,57,50],[57,51,57,63],[23,0,23,8],[23,9,23,30],[23,31,23,40],[23,41,23,50],[23,51,23,63],[21,0,21,8],[29,51,29,63],[30,51,30,63],[31,51,31,63],[43,31,43,40],[43,41,43,50],[43,51,43,63],[37,51,37,63],[38,9,38,30],[38,31,38,40],[32,31,32,40],[32,41,32,50],[58,51,58,63],[24,51,24,63],[25,0,25,8],[25,9,25,30],[25,31,25,40],[25,41,25,50],[25,51,25,63],[34,9,34,30],[34,31,34,40],[34,41,34,50],[34,51,34,63],[35,9,35,30],[35,31,35,40],[35,41,35,50],[35,51,35,63],[28,41,28,50],[56,41,56,50],[56,51,56,63],[24,0,24,8],[24,9,24,30],[24,31,24,40],[24,41,24,50],[28,51,28,63],[37,41,37,50],[3,31,3,40],[7,31,7,40],[7,41,7,50],[7,51,7,63],[8,31,8,40],[11,51,11,63],[12,31,12,40],[12,41,12,50],[12,51,12,63],[3,51,3,63],[4,51,4,63],[8,41,8,50],[8,51,8,63],[9,31,9,40],[9,41,9,50],[9,51,9,63],[10,31,10,40],[10,41,10,50],[10,51,10,63],[3,41,3,50],[4,31,4,40],[4,41,4,50],[5,51,5,63],[26,0,26,8],[27,0,27,8],[19,31,19,40],[19,41,19,50],[19,51,19,63],[6,31,6,40],[6,41,6,50],[6,51,6,63],[17,51,17,63],[18,51,18,63],[15,31,15,40],[15,41,15,50],[15,51,15,63],[16,31,16,40],[16,41,16,50],[16,51,16,63],[13,31,13,40],[13,41,13,50],[22,0,22,8],[22,9,22,30],[32,51,32,63],[33,9,33,30],[2,9,2,30],[17,0,17,8],[32,9,32,30],[29,9,29,30],[29,31,29,40],[29,41,29,50],[30,9,30,30],[30,31,30,40],[30,41,30,50],[31,9,31,30],[17,31,17,40],[17,41,17,50],[18,31,18,40],[18,41,18,50],[5,31,5,40],[31,31,31,40],[31,41,31,50],[28,9,28,30],[15,9,15,30],[16,0,16,8],[5,0,5,8],[6,0,6,8],[5,9,5,30],[6,9,6,30],[16,9,16,30],[11,31,11,40],[11,41,11,50],[12,9,12,30],[7,0,7,8],[7,9,7,30],[8,0,8,8],[8,9,8,30],[9,0,9,8],[9,9,9,30],[5,41,5,50],[10,0,10,8],[11,0,11,8],[13,9,13,30],[15,0,15,8],[14,0,14,8],[13,0,13,8],[12,0,12,8],[33,31,33,40],[33,41,33,50],[33,51,33,63],[36,31,36,40],[36,41,36,50],[36,51,36,63],[45,41,45,50],[45,51,45,63],[46,0,46,8],[46,9,46,30],[46,31,46,40],[46,41,46,50],[46,51,46,63],[39,9,39,30],[39,31,39,40],[39,41,39,50],[39,51,39,63],[38,41,38,50],[38,51,38,63],[47,41,47,50],[47,51,47,63],[40,0,40,8],[40,9,40,30],[40,31,40,40],[40,41,40,50],[40,51,40,63],[41,0,41,8],[41,9,41,30],[41,31,41,40],[41,41,41,50],[41,51,41,63],[42,0,42,8],[42,9,42,30],[42,31,42,40],[42,41,42,50],[42,51,42,63],[43,0,43,8],[43,9,43,30],[44,41,44,50],[44,51,44,63],[45,0,45,8],[45,9,45,30],[45,31,45,40],[77,0,77,8],[76,0,76,8],[73,0,73,8],[75,9,75,30],[75,31,75,40],[36,0,36,8],[35,0,35,8],[34,0,34,8],[33,0,33,8],[44,9,44,30],[44,31,44,40],[47,0,47,8],[47,9,47,30],[47,31,47,40],[36,9,36,30],[37,9,37,30],[37,31,37,40],[63,31,63,40],[69,31,69,40],[64,9,64,30],[64,31,64,40],[77,9,77,30],[77,31,77,40],[68,9,68,30],[32,0,32,8],[31,0,31,8],[30,0,30,8],[53,0,53,63],[48,0,48,8],[48,9,48,30],[48,31,48,40],[48,41,48,50],[48,51,48,63],[49,9,49,30],[49,31,50,40],[49,41,50,50],[49,51,50,63],[49,0,50,8],[50,9,50,14],[50,15,50,19],[50,20,50,24],[50,25,50,30],[51,0,51,8],[51,9,51,30],[51,31,51,40],[51,41,51,50],[51,51,51,63],[44,0,44,8],[26,41,26,50],[26,9,26,30],[26,31,26,40],[26,51,26,63],[27,9,27,30],[27,31,27,40],[27,41,27,50],[14,9,14,30],[10,9,10,30],[11,9,11,30],[22,31,22,40],[22,41,22,50],[22,51,22,63],[13,51,13,63],[14,31,14,40],[14,41,14,50],[14,51,14,63],[27,51,27,63],[19,9,19,30],[20,9,20,30],[17,9,17,30],[18,9,18,30],[0,0,0,63],[1,0,1,63],[2,31,2,40],[2,41,2,50],[2,51,2,63],[29,0,29,8],[28,0,28,8],[39,0,39,8],[38,0,38,8],[37,0,37,8],[3,0,3,8],[4,0,4,8],[3,9,3,30],[4,9,4,30],[20,0,20,8],[2,0,2,8],[20,51,20,63],[21,31,21,40],[21,41,21,50],[21,51,21,63],[18,0,18,8],[19,0,19,8],[20,31,20,40],[20,41,20,50]]}
["E. LISTA COEFICIENŢILOR DE CALCUL AI PRODUCŢIEI STANDARD PENTRU VEGETAL / ZOOTEHNIE- FONDURI EURI  8)    "]
["CALCULUL COEFICIENȚILOR DE PRODUCȚIE STANDARD PENTRU VEGETAL/ ZOOTEHNIC"]
["Coduri EUROSTAT",null,null,null,null,null,null,null,null,"Denumire culturi",null,null,null,null,null,null,null,null,null,null,null,null,null,null,null,null,null,null,null,null,null,"Suprafaţa       (ha)",null,null,null,null,null,null,null,null,null,"SO 2013         euro/ha",null,null,null,null,null,null,null,null,null,"SO"]
[0,null,null,null,null,null,null,null,null,1,null,null,null,null,null,null,null,null,null,null,null,null,null,null,null,null,null,null,null,null,null,2,null,null,null,null,null,null,null,null,null,3,null,null,null,null,null,null,null,null,null,4]
["B_1_1_1",null,null,null,null,null,null,null,null,"Grâu comun",null,null,null,null,null,null,null,null,null,null,null,null,null,null,null,null,null,null,null,null,null,null,null,null,null,null,null,null,null,null,null,614.09,614.09,614.09,614.09,614.09,614.09,614.09,614.09,614.09,614.09,{"$f":"AF5*AP5","v":0}]
["B_1_1_2",null,null,null,null,null,null,null,null,"Grâu dur",null,null,null,null,null,null,null,null,null,null,null,null,null,null,null,null,null,null,null,null,null,null,null,null,null,null,null,null,null,null,null,432.81,432.81,432.81,432.81,432.81,432.81,432.81,432.81,432.81,432.81,0]
["B_1_1_3",null,null,null,null,null,null,null,null,"Secară",null,null,null,null,null,null,null,null,null,null,null,null,null,null,null,null,null,null,null,null,null,null,null,null,null,null,null,null,null,null,null,354.27,354.27,354.27,354.27,354.27,354.27,354.27,354.27,354.27,354.27,0]
["B_1_1_4",null,null,null,null,null,null,null,null,"Orz+Orzoaică",null,null,null,null,null,null,null,null,null,null,null,null,null,null,null,null,null,null,null,null,null,null,null,null,null,null,null,null,null,null,null,529.44000000000005,529.44000000000005,529.44000000000005,529.44000000000005,529.44000000000005,529.44000000000005,529.44000000000005,529.44000000000005,529.44000000000005,529.44000000000005,0]
["B_1_1_5",null,null,null,null,null,null,null,null,"Ovăz",null,null,null,null,null,null,null,null,null,null,null,null,null,null,null,null,null,null,null,null,null,null,null,null,null,null,null,null,null,null,null,331.88,331.88,331.88,331.88,331.88,331.88,331.88,331.88,331.88,331.88,0]
["B_1_1_6",null,null,null,null,null,null,null,null,"Porumb boabe",null,null,null,null,null,null,null,null,null,null,null,null,null,null,null,null,null,null,null,null,null,null,null,null,null,null,null,null,null,null,null,641.79999999999995,641.79999999999995,641.79999999999995,641.79999999999995,641.79999999999995,641.79999999999995,641.79999999999995,641.79999999999995,641.79999999999995,641.79999999999995,0]
["B_1_1_7",null,null,null,null,null,null,null,null,"Orez",null,null,null,null,null,null,null,null,null,null,null,null,null,null,null,null,null,null,null,null,null,null,null,null,null,null,null,null,null,null,null,913.26,913.26,913.26,913.26,913.26,913.26,913.26,913.26,913.26,913.26,0]
["B_1_1_99",null,null,null,null,null,null,null,null,"Alte cereale:  sorg, hrişca, mei, triticale, iarba-cănăraşului, altele",null,null,null,null,null,null,null,null,null,null,null,null,null,null,null,null,null,null,null,null,null,null,null,null,null,null,null,null,null,null,null,452.74,452.74,452.74,452.74,452.74,452.74,452.74,452.74,452.74,452.74,0]
["B_1_2_1",null,null,null,null,null,null,null,null,"Mazăre boabe, fasole boabe, lupin dulce",null,null,null,null,null,null,null,null,null,null,null,null,null,null,null,null,null,null,null,null,null,null,null,null,null,null,null,null,null,null,null,533.77,533.77,533.77,533.77,533.77,533.77,533.77,533.77,533.77,533.77,0]
["B_1_2_2",null,null,null,null,null,null,null,null,"Linte, bob, năut şi măzăriche",null,null,null,null,null,null,null,null,null,null,null,null,null,null,null,null,null,null,null,null,null,null,null,null,null,null,null,null,null,null,null,454.79,454.79,454.79,454.79,454.79,454.79,454.79,454.79,454.79,454.79,0]
["B_1_3",null,null,null,null,null,null,null,null,"Cartofi(inclusiv cartofi noi, material săditor, cartof dulce destinat consumului uman)",null,null,null,null,null,null,null,null,null,null,null,null,null,null,null,null,null,null,null,null,null,null,null,null,null,null,null,null,null,null,null,3167.88,3167.88,3167.88,3167.88,3167.88,3167.88,3167.88,3167.88,3167.88,3167.88,0]
["B_1_4",null,null,null,null,null,null,null,null,"Sfeclă de zahăr",null,null,null,null,null,null,null,null,null,null,null,null,null,null,null,null,null,null,null,null,null,null,null,null,null,null,null,null,null,null,null,1449.74,1449.74,1449.74,1449.74,1449.74,1449.74,1449.74,1449.74,1449.74,1449.74,0]
["B_1_5",null,null,null,null,null,null,null,null,"Plante rădăcinoase pentru nutreț: sfecla furajeră, alte plante furajere din familia brasiceelor, napi furajeri, morcovi furajeri, batata(cartof dulce), păstârnac, ignama, manioc,alte rădăcinoase",null,null,null,null,null,null,null,null,null,null,null,null,null,null,null,null,null,null,null,null,null,null,null,null,null,null,null,null,null,null,null,1101.45,1101.45,1101.45,1101.45,1101.45,1101.45,1101.45,1101.45,1101.45,1101.45,0]
["B_1_6_1",null,null,null,null,null,null,null,null,"Tutun",null,null,null,null,null,null,null,null,null,null,null,null,null,null,null,null,null,null,null,null,null,null,null,null,null,null,null,null,null,null,null,1696.83,1696.83,1696.83,1696.83,1696.83,1696.83,1696.83,1696.83,1696.83,1696.83,{"$f":"AF18*AP18","v":0}]
["B_1_6_2",null,null,null,null,null,null,null,null,"Hamei",null,null,null,null,null,null,null,null,null,null,null,null,null,null,null,null,null,null,null,null,null,null,null,null,null,null,null,null,null,null,null,4105.24,4105.24,4105.24,4105.24,4105.24,4105.24,4105.24,4105.24,4105.24,4105.24,0]
["B_1_6_4",null,null,null,null,null,null,null,null,"Rapiţă",null,null,null,null,null,null,null,null,null,null,null,null,null,null,null,null,null,null,null,null,null,null,null,null,null,null,null,null,null,null,null,647.72,647.72,647.72,647.72,647.72,647.72,647.72,647.72,647.72,647.72,0]
["B_1_6_5",null,null,null,null,null,null,null,null,"Floarea soarelui",null,null,null,null,null,null,null,null,null,null,null,null,null,null,null,null,null,null,null,null,null,null,null,null,null,null,null,null,null,null,null,564.52,564.52,564.52,564.52,564.52,564.52,564.52,564.52,564.52,564.52,{"$f":"AF21*AP21","v":0}]
["B_1_6_6",null,null,null,null,null,null,null,null,"Soia",null,null,null,null,null,null,null,null,null,null,null,null,null,null,null,null,null,null,null,null,null,null,null,null,null,null,null,null,null,null,null,611,611,611,611,611,611,611,611,611,611,0]
["B_1_6_7",null,null,null,null,null,null,null,null,"In pentru ulei",null,null,null,null,null,null,null,null,null,null,null,null,null,null,null,null,null,null,null,null,null,null,null,null,null,null,null,null,null,null,null,1563.56,1563.56,1563.56,1563.56,1563.56,1563.56,1563.56,1563.56,1563.56,1563.56,0]
["B_1_6_8",null,null,null,null,null,null,null,null,"Alte plante pentru ulei: ricin, şofrănaş, susan, arahide, mac, muştar, alte culturi oleaginoase",null,null,null,null,null,null,null,null,null,null,null,null,null,null,null,null,null,null,null,null,null,null,null,null,null,null,null,null,null,null,null,374,374,374,374,374,374,374,374,374,374,0]
["B_1_6_9",null,null,null,null,null,null,null,null,"In pentru ulei",null,null,null,null,null,null,null,null,null,null,null,null,null,null,null,null,null,null,null,null,null,null,null,null,null,null,null,null,null,null,null,307.17,307.17,307.17,307.17,307.17,307.17,307.17,307.17,307.17,307.17,{"$f":"AF25*AP25","v":0}]
["B_1_6_10",null,null,null,null,null,null,null,null,"Cânepă",null,null,null,null,null,null,null,null,null,null,null,null,null,null,null,null,null,null,null,null,null,null,null,null,null,null,null,null,null,null,null,518.11,518.11,518.11,518.11,518.11,518.11,518.11,518.11,518.11,518.11,0]
["B_1_6_12",null,null,null,null,null,null,null,null,"Plante medicinale şi aromatice inclusiv ceaiul, cafeaua şi cicoarea pentru cafea: muşeţel, mătrăguna, menta, mac, angelica,chimen, genţiana, iasomia, lavanda, levănţica, origanul, şofranul, salvia,valeriana, gălbeneaua, etc.",null,null,null,null,null,null,null,null,null,null,null,null,null,null,null,null,null,null,null,null,null,null,null,null,null,null,null,null,null,null,null,937.85,937.85,937.85,937.85,937.85,937.85,937.85,937.85,937.85,937.85,{"$f":"AF27*AP27","v":0}]
["B_1_6_99",null,null,null,null,null,null,null,null,"Alte plante industriale: cicoarea, trestia de zahăr, alte plante tehnice nemenţionate în altă parte, sorgul tehnic (pentru mături)",null,null,null,null,null,null,null,null,null,null,null,null,null,null,null,null,null,null,null,null,null,null,null,null,null,null,null,null,null,null,null,717.56,717.56,717.56,717.56,717.56,717.56,717.56,717.56,717.56,717.56,0]
["B_1_7_1_1",null,null,null,null,null,null,null,null,"Legume proaspete, pepeni şi căpşuni - în câmp:\n- varza, conopidă, broccoli,\n- legume pentru frunze (praz, salată, spanac etc.), \n- tomate,\n- porumb dulce,\n- legume cultivate pentru fructe: vinete, ardei, dovleci şi dovlecei, castraveciori,\n- legume cultivate pentru rădăcină, bulbi, tuberculi (excepţie cartofi): morcovi, păstârnac, ceapă, usturoi, napi,\n- legume păstăi: fasole, mazăre, cu excepţia lintei şi a năutului,\n- fructele plantelor neperene: căpşuni, pepeni galbeni, pepeni verzi, ananas.",null,null,null,null,null,null,null,null,null,null,null,null,null,null,null,null,null,null,null,null,null,null,null,null,null,null,null,null,null,null,null,6196.49,null,null,null,null,null,null,null,null,null,{"$f":"AF29*AP29","v":0}]
["B_1_7_1_2",null,null,null,null,null,null,null,null,"Legume proaspete, pepeni şi căpşuni - în grădină destinate comercializării:\n- varza, conopidă, broccoli,\n- legume pentru frunze (praz, salată, spanac etc.), \n- tomate,\n- porumb dulce,\n- legume cultivate pentru fructe: vinete, ardei, dovleci şi dovlecei, castraveciori,\n- legume cultivate pentru rădăcină, bulbi, tuberculi (excepţie cartofi) - morcovi, păstârnac, ceapă, usturoi, napi,\n- legume păstăi: fasole, mazăre, cu excepţia lintei şi a năutului,\n- fructele plantelor neperene: căpşuni, pepeni galbeni, pepeni verzi, ananas.",null,null,null,null,null,null,null,null,null,null,null,null,null,null,null,null,null,null,null,null,null,null,null,null,null,null,null,null,null,null,null,7176.16,null,null,null,null,null,null,null,null,null,{"$f":"AF30*AP30","v":0}]
["B_1_7_2",null,null,null,null,null,null,null,null,"Legume proaspete, pepeni şi căpşuni - în sere și solarii:\n- varza, conopidă, broccoli,\n- legume pentru frunze (praz, salată, spanac etc.), \n- tomate,\n- porumb dulce,\n- legume cultivate pentru fructe: vinete, ardei, dovleci şi dovlecei, castraveciori,\n- legume cultivate pentru rădăcină, bulbi, tuberculi (excepţie cartofi): morcovi, păstârnac,ceapă, usturoi, napi,\n- legume păstăi: fasole, mazăre, cu excepţia lintei şi a năutului,\n- fructele plantelor neperene: căpşuni, pepeni galbeni, pepeni verzi, ananas.",null,null,null,null,null,null,null,null,null,null,null,null,null,null,null,null,null,null,null,null,null,null,null,null,null,null,null,null,null,null,null,27507.66,null,null,null,null,null,null,null,null,null,{"$f":"AF31*AP31","v":0}]
["B_1_8_1",null,null,null,null,null,null,null,null,"Flori în câmp:\n- bulbi de flori, cormi, tuberculi,\n- flori tăiate şi boboci,\n- plante cu flori şi plante ornamentale ",null,null,null,null,null,null,null,null,null,null,null,null,null,null,null,null,null,null,null,null,null,null,null,null,null,null,null,null,null,null,null,25527.46,null,null,null,null,null,null,null,null,null,{"$f":"AF32*AP32","v":0}]
["B_1_8_2",null,null,null,null,null,null,null,null,"Flori - în sere și solarii:\n- bulbi de flori, cormi, tuberculi,\n- flori tăiate şi boboci,\n- plante cu flori şi plante ornamentale",null,null,null,null,null,null,null,null,null,null,null,null,null,null,null,null,null,null,null,null,null,null,null,null,null,null,null,null,null,null,null,83743.81,null,null,null,null,null,null,null,null,null,{"$f":"AF33*AP33","v":0}]
["B_1_9_1",null,null,null,null,null,null,null,null,"Plante de nutreț - Iarba temporară: iarba semănată pe terenuri arabile cedate producţiilor furajere erbacee pe o perioadă mai scurtă de 5 ani şi chiar sub un an",null,null,null,null,null,null,null,null,null,null,null,null,null,null,null,null,null,null,null,null,null,null,null,null,null,null,null,null,null,null,null,266.22000000000003,null,null,null,null,null,null,null,null,null,{"$f":"AF34*AP34","v":0}]
["B_1_9_2_1",null,null,null,null,null,null,null,null,"Plante de nutreț - alte furaje verzi - Porumb siloz",null,null,null,null,null,null,null,null,null,null,null,null,null,null,null,null,null,null,null,null,null,null,null,null,null,null,null,null,null,null,null,1029.19,null,null,null,null,null,null,null,null,null,{"$f":"AF35*AP35","v":0}]
["B_1_9_2_2",null,null,null,null,null,null,null,null,"PPlante de nutreţ – alte furaje verzi (culturi anuale de cereale recoltate verzi, sorgul anual, anumite graminee anuale cum sunt firuţa, cruciferele, facelia dacă sunt recoltate verzi şi nu au fost menţionate în altă parte, măzăriche, lupin dulce)",null,null,null,null,null,null,null,null,null,null,null,null,null,null,null,null,null,null,null,null,null,null,null,null,null,null,null,null,null,null,null,476.13,476.13,476.13,476.13,476.13,476.13,476.13,476.13,476.13,476.13,{"$f":"AF36*AP36","v":0}]
["B_1_9_2_99",null,null,null,null,null,null,null,null,"Alte plante de nutreţ(diferite specii de trifoi anual sau peren-trifoi alb, trifoi roşu, trifoi de Alexandria - diferite varietăţi de lucernă ,)",null,null,null,null,null,null,null,null,null,null,null,null,null,null,null,null,null,null,null,null,null,null,null,null,null,null,null,null,null,null,null,662.78,null,null,null,null,null,null,null,null,null,{"$f":"AF37*AP37","v":0}]
["B_1_10",null,null,null,null,null,null,null,null,"Seminţe şi seminceri:\n- semințe de graminee,\n- seminţe pentru horticultură,\n- seminţe şi răsaduri pentru teren arabil cu excepţia cerealelor, a boabelor de leguminoase uscate, a cartofilor, a plantelor oleaginoase.",null,null,null,null,null,null,null,null,null,null,null,null,null,null,null,null,null,null,null,null,null,null,null,null,null,null,null,null,null,null,null,2993.73,null,null,null,null,null,null,null,null,null,{"$f":"AF38*AP38","v":0}]
["B_11",null,null,null,null,null,null,null,null,"Alte plante: culturi de mică importanţă economică care nu pot fi încadrate în altă categorie",null,null,null,null,null,null,null,null,null,null,null,null,null,null,null,null,null,null,null,null,null,null,null,null,null,null,null,null,null,null,null,592.99,null,null,null,null,null,null,null,null,null,{"$f":"AF39*AP39","v":0}]
["B_3_1",null,null,null,null,null,null,null,null,"Păşuni și fânețe permanente - pășuni și fânețe",null,null,null,null,null,null,null,null,null,null,null,null,null,null,null,null,null,null,null,null,null,null,null,null,null,null,null,null,null,null,null,295.04000000000002,476.13,476.13,476.13,476.13,476.13,476.13,476.13,476.13,476.13,{"$f":"AF40*AP40","v":0}]
["B_3_2",null,null,null,null,null,null,null,null,"Păşuni și fânețe permanente - pe terenuri accidentate - păşuni sărace, inclusiv lăstărişul, de obicei nefertilizate şi neîntrebuinţate:\n– păşuni cu randament scăzut situate în locuri accidentate şi la altitudini mari, care nu sunt cosite;\n – terenuri stâncoase, terenuri mlăştinoase, bărăganuri",null,null,null,null,null,null,null,null,null,null,null,null,null,null,null,null,null,null,null,null,null,null,null,null,null,null,null,null,null,null,null,92.33,662.78,662.78,662.78,662.78,662.78,662.78,662.78,662.78,662.78,{"$f":"AF41*AP41","v":0}]
["B_4_1_1_1",null,null,null,null,null,null,null,null,"Fructe, pomi și arbuști - climă temperată:\n- mere, \n- pere\n- piersici și nectarine,\n- Alte fructe: prune, caise, cireşe, vişine, gutui.",null,null,null,null,null,null,null,null,null,null,null,null,null,null,null,null,null,null,null,null,null,null,null,null,null,null,null,null,null,null,null,2812.04,null,null,null,null,null,null,null,null,null,{"$f":"AF42*AP42","v":0}]
["B_4_1_2",null,null,null,null,null,null,null,null,"Livezi de coacăz, smochin, zmeur, muri,agrişe, cătină, afin, goji",null,null,null,null,null,null,null,null,null,null,null,null,null,null,null,null,null,null,null,null,null,null,null,null,null,null,null,null,null,null,null,3958.34,null,null,null,null,null,null,null,null,null,{"$f":"AF43*AP43","v":0}]
["B_4_1_3",null,null,null,null,null,null,null,null,"Fructe, pomi şi arbuşti – nuci, alune",null,null,null,null,null,null,null,null,null,null,null,null,null,null,null,null,null,null,null,null,null,null,null,null,null,null,null,null,null,null,null,1754.4,null,null,null,null,null,null,null,null,null,{"$f":"AF44*AP44","v":0}]
["B_4_4_1",null,null,null,null,null,null,null,null,"Vii - vin nobil",null,null,null,null,null,null,null,null,null,null,null,null,null,null,null,null,null,null,null,null,null,null,null,null,null,null,null,null,null,null,null,1981.83,null,null,null,null,null,null,null,null,null,{"$f":"AF45*AP45","v":0}]
["B_4_4_2",null,null,null,null,null,null,null,null,"Vii - alte vinuri",null,null,null,null,null,null,null,null,null,null,null,null,null,null,null,null,null,null,null,null,null,null,null,null,null,null,null,null,null,null,null,1889.96,null,null,null,null,null,null,null,null,null,{"$f":"AF46*AP46","v":0}]
["B_4_4_3",null,null,null,null,null,null,null,null,"Vii – struguri de masă",null,null,null,null,null,null,null,null,null,null,null,null,null,null,null,null,null,null,null,null,null,null,null,null,null,null,null,null,null,null,null,2170.52,null,null,null,null,null,null,null,null,null,{"$f":"AF47*AP47","v":0}]
["B_4_5",null,null,null,null,null,null,null,null,"Pepiniere",null,null,null,null,null,null,null,null,null,null,null,null,null,null,null,null,null,null,null,null,null,null,null,null,null,null,null,null,null,null,null,5614.25,null,null,null,null,null,null,null,null,null,{"$f":"AF48*AP48","v":0}]
["B_4_6",null,null,null,null,null,null,null,null,"Alte culturi  permanente: răchita, papura, bambus, salcie, brazi de crăciun",null,null,null,null,null,null,null,null,null,null,null,null,null,null,null,null,null,null,null,null,null,null,null,null,null,null,null,null,null,null,null,487.35,null,null,null,null,null,null,null,null,null,{"$f":"AF49*AP49","v":0}]
["B_6_1",null,null,null,null,null,null,null,null,"Ciupercării pe 100mp (Nr. recolte pe an - 4)\n(suprafața totală cultivată = suprafața de bază*numărul de cicluri)",null,null,null,null,null,null,null,null,null,null,null,null,null,null,null,null,null,null,null,null,null,{"$f":"P51*Z51/100","v":0},null,null,null,null,null,null,null,null,null,4456.78,null,null,null,null,null,null,null,null,null,{"$f":"AF50*AP50/4","v":0}]
[null,null,null,null,null,null,null,null,null,"Nr. cicluri conform Plan afaceri *",null,null,null,null,null,null,null,null,null,null,"Suprafata de bază (stelaje) (mp) **"]
[null,null,null,null,null,null,null,null,null,"TOTAL VEGETAL",null,null,null,null,null,null,null,null,null,null,null,null,null,null,null,null,null,null,null,null,null,null,null,null,null,null,null,null,null,null,null,null,null,null,null,null,null,null,null,null,null,{"$f":"SUM(AZ5:BJ51)","v":0}]
[]
["*  Se va completa cu numărul de cicluri prevăzut a se realiza în cadrul unui an, conform planului de afaceri\n** Se va completa cu suprafața culturii(mp) cu ciuperci; în cazul în care în cadrul ciupercăriei se utilizează un sistem de cultură în stelaje, se va completa suprafața culturii formată din suprafața unui stelaj(mp) X număr de stelaje "]
["Coduri EUROSTAT",null,null,null,null,null,null,null,null,"Denumire specii animale",null,null,null,null,null,null,null,null,null,null,null,null,null,null,null,null,null,null,null,null,null,"Număr\ncapete",null,null,null,null,null,null,null,null,null,"SO 2013           euro/cap",null,null,null,null,null,null,null,null,null,"SO"]
[0,null,null,null,null,null,null,null,null,1,null,null,null,null,null,null,null,null,null,null,null,null,null,null,null,null,null,null,null,null,null,2,null,null,null,null,null,null,null,null,null,3,null,null,null,null,null,null,null,null,null,4]
["C_1",null,null,null,null,null,null,null,null,"Ecvidee3)",null,null,null,null,null,null,null,null,null,null,null,null,null,null,null,null,null,null,null,null,null,null,null,null,null,null,null,null,null,null,null,1404.31,null,null,null,null,null,null,null,null,null,{"$f":"AF57*AP57","v":0}]
["C_2_1",null,null,null,null,null,null,null,null,"Bovine sub 1 an - total 2)4)",null,null,null,null,null,null,null,null,null,null,null,null,null,null,null,null,null,null,null,null,null,null,null,null,null,null,null,null,null,null,null,216.38,null,null,null,null,null,null,null,null,null,0]
["C_2_2",null,null,null,null,null,null,null,null,"Bovine sub 2 ani - masculi 2)4)",null,null,null,null,null,null,null,null,null,null,null,null,null,null,null,null,null,null,null,null,null,null,null,null,null,null,null,null,null,null,null,344.4,null,null,null,null,null,null,null,null,null,0]
["C_2_3",null,null,null,null,null,null,null,null,"Bovine sub 2 ani - femele 2)4)",null,null,null,null,null,null,null,null,null,null,null,null,null,null,null,null,null,null,null,null,null,null,null,null,null,null,null,null,null,null,null,341.49,null,null,null,null,null,null,null,null,null,0]
["C_2_4",null,null,null,null,null,null,null,null,"Bovine de 2 ani şi peste - masculi 2)4)",null,null,null,null,null,null,null,null,null,null,null,null,null,null,null,null,null,null,null,null,null,null,null,null,null,null,null,null,null,null,null,817.88,null,null,null,null,null,null,null,null,null,0]
["C_2_5",null,null,null,null,null,null,null,null,"Bovine de 2 ani si peste -femele (juninci pentru îngrăşat, juninci pentru reproducţie) 2)4)",null,null,null,null,null,null,null,null,null,null,null,null,null,null,null,null,null,null,null,null,null,null,null,null,null,null,null,null,null,null,null,801.38,null,null,null,null,null,null,null,null,null,0]
["C_2_6",null,null,null,null,null,null,null,null,"Vaci, bivoliţe  pentru lapte 2)4)",null,null,null,null,null,null,null,null,null,null,null,null,null,null,null,null,null,null,null,null,null,null,null,null,null,null,null,null,null,null,null,1200.46,null,null,null,null,null,null,null,null,null,0]
["C_2_99",null,null,null,null,null,null,null,null,"Bovine de 2 ani şi peste - alte vaci 2)4)",null,null,null,null,null,null,null,null,null,null,null,null,null,null,null,null,null,null,null,null,null,null,null,null,null,null,null,null,null,null,null,515.85,null,null,null,null,null,null,null,null,null,0]
["C_3_1_1",null,null,null,null,null,null,null,null,"Oi5)\n - mioare montate\n - oi de un an sau mai mult destinate reproducerii, oile reformate care urmează să fete ",null,null,null,null,null,null,null,null,null,null,null,null,null,null,null,null,null,null,null,null,null,null,null,null,null,null,null,null,null,null,null,54.91,null,null,null,null,null,null,null,null,null,0]
["C_3_1_99",null,null,null,null,null,null,null,null,"Oi- alte oi5) \n-miei, berbeci, oi reformate \n-oi sterpe care urmează a fi îngrăşate în vederea sacrificării ",null,null,null,null,null,null,null,null,null,null,null,null,null,null,null,null,null,null,null,null,null,null,null,null,null,null,null,null,null,null,null,26.72,null,null,null,null,null,null,null,null,null,0]
["C_3_2_1",null,null,null,null,null,null,null,null,"Capre - capre montate\n- capre montate femele destinate reproducerii, capre reformate care urmează să fete 5)",null,null,null,null,null,null,null,null,null,null,null,null,null,null,null,null,null,null,null,null,null,null,null,null,null,null,null,null,null,null,null,112.98,null,null,null,null,null,null,null,null,null,0]
["C_3_2_99",null,null,null,null,null,null,null,null,"Capre – alte capre \n-iezi, ţapi, capre reformate destinate sacrificării 5)",null,null,null,null,null,null,null,null,null,null,null,null,null,null,null,null,null,null,null,null,null,null,null,null,null,null,null,null,null,null,null,39.67,null,null,null,null,null,null,null,null,null,0]
["C_4_1_1",null,null,null,null,null,null,null,null,"Porcine - tineret porcin sub 20 kg 6)",null,null,null,null,null,null,null,null,null,null,null,null,null,null,null,null,null,null,null,null,null,null,null,null,null,null,null,null,null,null,null,33.36,null,null,null,null,null,null,null,null,null,0]
["C_4_1_2",null,null,null,null,null,null,null,null,"Porcine - scroafe pentru reproducţie peste 50 kg 6)",null,null,null,null,null,null,null,null,null,null,null,null,null,null,null,null,null,null,null,null,null,null,null,null,null,null,null,null,null,null,null,262.55,null,null,null,null,null,null,null,null,null,0]
["C_4_1_99",null,null,null,null,null,null,null,null,"Porcine - alte porcine \n-porci la îngrășat, vieri, scroafe destinate sacrificării6)",null,null,null,null,null,null,null,null,null,null,null,null,null,null,null,null,null,null,null,null,null,null,null,null,null,null,null,null,null,null,null,388.08,null,null,null,null,null,null,null,null,null,0]
["C_5_1",null,null,null,null,null,null,null,null,"Pui pentru carne 1)",null,null,null,null,null,null,null,null,null,null,null,null,null,null,null,null,null,null,null,null,null,null,null,null,null,null,null,null,null,null,null,473.59,null,null,null,null,null,null,null,null,null,0]
["C_5_2",null,null,null,null,null,null,null,null,"Găini ouătoare 1)",null,null,null,null,null,null,null,null,null,null,null,null,null,null,null,null,null,null,null,null,null,null,null,null,null,null,null,null,null,null,null,2156,null,null,null,null,null,null,null,null,null,0]
["C_5_3_1",null,null,null,null,null,null,null,null,"Curcani şi curci 1)",null,null,null,null,null,null,null,null,null,null,null,null,null,null,null,null,null,null,null,null,null,null,null,null,null,null,null,null,null,null,null,4205.5600000000004,null,null,null,null,null,null,null,null,null,0]
["C_5_3_2",null,null,null,null,null,null,null,null,"Raţe 1)",null,null,null,null,null,null,null,null,null,null,null,null,null,null,null,null,null,null,null,null,null,null,null,null,null,null,null,null,null,null,null,2824.99,null,null,null,null,null,null,null,null,null,0]
["C_5_3_3",null,null,null,null,null,null,null,null,"Gâşte 1)",null,null,null,null,null,null,null,null,null,null,null,null,null,null,null,null,null,null,null,null,null,null,null,null,null,null,null,null,null,null,null,3602.66,null,null,null,null,null,null,null,null,null,0]
["C_5_3_4",null,null,null,null,null,null,null,null,"Struţi 1)",null,null,null,null,null,null,null,null,null,null,null,null,null,null,null,null,null,null,null,null,null,null,null,null,null,null,null,null,null,null,null,30083.5,null,null,null,null,null,null,null,null,null,0]
["C_5_3_99",null,null,null,null,null,null,null,null,"Alte păsări: bibilici, porumbei, potârnichi, fazani, prepeliţe 1)",null,null,null,null,null,null,null,null,null,null,null,null,null,null,null,null,null,null,null,null,null,null,null,null,null,null,null,null,null,null,null,900.34,null,null,null,null,null,null,null,null,null,0]
["C_6",null,null,null,null,null,null,null,null,"Iepuri (femele iepuri)",null,null,null,null,null,null,null,null,null,null,null,null,null,null,null,null,null,null,null,null,null,null,null,null,null,null,null,null,null,null,null,13.91,null,null,null,null,null,null,null,null,null,0]
["C_7",null,null,null,null,null,null,null,null,"Familii de albine 7)",null,null,null,null,null,null,null,null,null,null,null,null,null,null,null,null,null,null,null,null,null,null,null,null,null,null,null,null,null,null,null,59.62,null,null,null,null,null,null,null,null,null,0]
[null,null,null,null,null,null,null,null,null,"TOTAL zootehnic",null,null,null,null,null,null,null,null,null,null,null,null,null,null,null,null,null,null,null,null,null,null,null,null,null,null,null,null,null,null,null,null,null,null,null,null,null,null,null,null,null,{"$f":"SUM(AZ57:BL80)","v":0}]
[null,null,null,null,null,null,null,null,null,"TOTAL GENERAL",null,null,null,null,null,null,null,null,null,null,null,null,null,null,null,null,null,null,null,null,null,null,null,null,null,null,null,null,null,null,null,null,null,null,null,null,null,null,null,null,null,{"$f":"AZ52+AZ81","v":0}]
[]
["Valoare sprijin:",null,null,null,null,null,null,null,null,null,null,null,null,null,null,null,null,null,null,null,null,null,null,null,null,null,"se introduce 40.000 EURO daca exploatatia are intre 8000-29999 SO"]
[]
["Valoare sprijin:",null,null,null,null,null,null,null,null,null,null,null,null,null,null,null,null,null,null,null,null,null,null,null,null,null,"se introduce 50.000 EURO daca exploatatia are intre 30000-50000 SO"]
[]
["Atentie! Daca solicitantul detine o exploatatie cu valori mai mici de 8000 SO sau mai mari de 50000 SO atunci proiectul este neeligibil!"]
[]
["Curs EURO la data întocmirii Planului de Afaceri:",null,null,null,null,null,null,null,null,null,null,null,null,null,null,null,null,null,null,null,null,null,null,null,null,null,null,null,null,null,null,null,null,null,"Data întocmire Plan de Afaceri:"]
[]
["1) Valoarea SO se referă la 100 capete \nExploatația de păsări care își desfășoară activitate pe mai multe cicluri de producție într-un an contabil se va dimensiona la depunerea cererii de finanțare cu efectivul de păsări existent.\n 2) Categoriile de bovine includ și categoriile corespunzătoare de bivoli și bivolițe\n 3) Cabalinele luate in calcul nu sunt destinate consumului uman, ci deservesc munca în exploataţie   \n 4)În cazul exploataţiilor de creștere a bovinelor:\nBovinele pentru carne sunt cele destinate sacrificării: bovine sub un an, bovine sub 2 ani (femele și masculi), bovine de doi ani și peste (femele și masculi), alte bovine (tauri, boi, alte bovine reformate destinate sacrificării).\nBovinele sub un an se iau în calculul dimensiunii economice, astfel:\n-dacă în cadrul exploatației se găsesc vaci de lapte, atunci calculul dimensiunii economice se face prin însumarea producților standard pentru vaci de lapte și a producțiilor standard pentru vițeii sub un an al căror număr depășește numărul vacilor de lapte\n-dacă în cadrul exploatației nu se găsesc vaci de lapte, atunci calculul dimensiunii economice se face prin însumarea producțiilor standard pentru vițeii sub un an al căror număr există la acel moment în cadrul exploatației\n 5)În cazul exploataţiilor de creștere a ovinelor / caprinelor:\nNumărul de miei/iezi se ia în calculul dimensiunii economice numai dacă în cadrul exploatației nu sunt oi, respectiv capre pentru reproducție  . \n 6) În cazul exploataţiilor de creștere a porcinelor:\nNumărul de porcine sub 20 kg se ia în calculul dimensiunii economice numai dacă în cadrul exploatației nu sunt scroafe de reproducție.\n 7)Valoarea SO este calculată pe stup.\n 8)Legislația care a stat la baza stabilirii coeficienților de calcul se regăsește la capitolul Legislația europeană și națională aplicabilă din Ghidul solicitantului aferent măsurii M3/2A"]

{"sheet":"A8-Detalii privind terenul ","index":1,"n_rows":22,"n_cols":44,"rows_kept":22,"cut":false,"hidden":false,"merged":[[13,2,13,58],[14,1,14,14],[14,16,14,34],[14,36,14,58],[15,1,15,14],[15,16,15,34],[15,36,15,58],[22,1,22,24],[22,43,22,58],[17,3,17,14],[17,16,17,21],[17,23,17,29],[17,32,17,40],[18,3,18,14],[18,16,18,21],[18,23,18,29],[22,26,22,41],[8,1,8,58],[9,1,9,24],[9,26,9,41],[9,43,9,58],[10,1,10,24],[10,26,10,41],[10,43,10,58],[7,3,7,49],[4,1,4,14],[5,3,5,14],[5,16,5,21],[5,23,5,29],[5,32,5,40],[5,43,5,50],[6,3,6,14],[6,16,6,21],[6,23,6,29],[6,32,6,40],[6,43,6,50],[1,2,1,58],[2,1,2,14],[2,16,2,34],[2,36,2,58],[3,1,3,14],[3,16,3,34],[3,36,3,58],[16,1,16,14],[20,1,20,58],[21,1,21,24],[21,26,21,41],[21,43,21,58],[17,43,17,50],[18,32,18,40],[18,43,18,50],[19,3,19,49]]}
[]
[null,null,"A8 DETALII PRIVIND TERENUL EXPLOATAŢIEI CARE STĂ LA BAZA CALCULULUI SO:"]
[null,"Judeţ",null,null,null,null,null,null,null,null,null,null,null,null,null,null,"Comună",null,null,null,null,null,null,null,null,null,null,null,null,null,null,null,null,null,null,null,"Sat"]
[]
[null,"Modalităţi deţinere"]
[null,null,null,"Moştenire / Donaţie",null,null,null,null,null,null,null,null,null,null,null,null,null,null,null,null,null,null,null,"Blocul fizic",null,null,null,null,null,null,null," ","Parcela",null,null,null,null,null,null,null,null,null,null,"Tarlaua"]
[null,null,null,"Achiziţie"]
[null,null,null,"Arendă / Concesiune/ Comodat / Închiriere/ Dare temporă în administrare sau folosinţă"]
[null,"Persoana care a dat moştenirea/donaţia/vânzător/arendator/concedent/comodant/locator / Persoana care a dat temporar în administrare sau folosință"]
[null,"Nume si prenume / Denumire",null,null,null,null,null,null,null,null,null,null,null,null,null,null,null,null,null,null,null,null,null,null,null,null,"Cod unic înregistrare/Cod numeric personal",null,null,null,null,null,null,null,null,null,null,null,null,null,null,null,null,"Act identitate (serie/număr) cetăţeni străini"]
[]
[]
[]
[null,null,"A8 DETALII PRIVIND TERENUL EXPLOATAŢIEI CARE STĂ LA BAZA CALCULULUI SO:"]
[null,"Judeţ",null,null,null,null,null,null,null,null,null,null,null,null,null,null,"Comună",null,null,null,null,null,null,null,null,null,null,null,null,null,null,null,null,null,null,null,"Sat"]
[]
[null,"Modalităţi deţinere"]
[null,null,null,"Moştenire / Donaţie",null,null,null,null,null,null,null,null,null,null,null,null,null,null,null,null,null,null,null,"Blocul fizic",null,null,null,null,null,null,null," ","Parcela",null,null,null,null,null,null,null,null,null,null,"Tarlaua"]
[null,null,null,"Achiziţie"]
[null,null,null,"Arendă / Concesiune/ Comodat / Închiriere/ Dare temporă în administrare sau folosinţă"]
[null,"Persoana care a dat moştenirea/donaţia/vânzător/arendator/concedent/comodant/locator / Persoana care a dat temporar în administrare sau folosință"]
[null,"Nume si prenume / Denumire",null,null,null,null,null,null,null,null,null,null,null,null,null,null,null,null,null,null,null,null,null,null,null,null,"Cod unic înregistrare/Cod numeric personal",null,null,null,null,null,null,null,null,null,null,null,null,null,null,null,null,"Act identitate (serie/număr) cetăţeni străini"]

{"sheet":"Asociati","index":2,"n_rows":24,"n_cols":52,"rows_kept":24,"cut":false,"hidden":false,"merged":[[6,3,6,16],[6,24,6,49],[5,3,5,10],[5,24,5,49],[1,2,1,14],[3,3,3,16],[3,17,3,49],[9,28,9,35],[9,37,9,48],[9,51,9,58],[10,4,10,6],[10,7,10,9],[10,10,10,15],[10,18,11,20],[10,21,11,26],[10,28,11,35],[10,37,11,48],[9,4,9,15],[9,18,9,20],[9,21,9,26],[10,51,11,58],[11,4,11,6],[11,7,11,9],[23,51,24,58],[24,4,24,6],[24,7,24,9],[24,10,24,15],[22,28,22,35],[22,37,22,48],[22,51,22,58],[23,4,23,6],[23,7,23,9],[23,10,23,15],[23,18,24,20],[23,21,24,26],[23,28,24,35],[22,21,22,26],[23,37,24,48],[22,4,22,15],[22,18,22,20],[11,10,11,15],[16,3,16,16],[16,17,16,49],[18,3,18,10],[18,24,18,49],[19,3,19,16],[19,24,19,49]]}
[]
[null,null,"Asociaţi"]
[]
[null,null,null,"Nume si prenume asociat"]
[]
[null,null,null,"Data naşterii",null,null,null,null,null,null,null,null,null,null,null,null,null,null,null,null,null,null,null,null,"Cod numeric personal"]
[]
[]
[]
[null,null,null,null,"Act de identitate",null,null,null,null,null,null,null,null,null,null,null,null,null,"Seria",null,null,"Nr.",null,null,null,null,null,null,"Eliberat la data de",null,null,null,null,null,null,null,null,"de:",null,null,null,null,null,null,null,null,null,null,null,null,null,"Valabil până la:"]
[null,null,null,null,"B.I.",null,null,"C.I.",null,null,"Paşaport"]
[]
[]
[]
[]
[]
[null,null,null,"Nume si prenume asociat"]
[]
[null,null,null,"Data naşterii",null,null,null,null,null,null,null,null,null,null,null,null,null,null,null,null,null,null,null,null,"Cod numeric personal"]
[]
[]
[]
[null,null,null,null,"Act de identitate",null,null,null,null,null,null,null,null,null,null,null,null,null,"Seria",null,null,"Nr.",null,null,null,null,null,null,"Eliberat la data de",null,null,null,null,null,null,null,null,"de:",null,null,null,null,null,null,null,null,null,null,null,null,null,"Valabil până la:"]
[null,null,null,null,"B.I.",null,null,"C.I.",null,null,"Paşaport"]